Cogmind - Beta 17 @@@ ROGUE MODE // 2026.06.23 @ 14:58:09 Player: Minty Result: Destroyed by Y-64 Sentinel with Wave Gun Performance ------------- Evolutions (5) 2500 Regions Visited (5) 1000 Robots Destroyed (26) 130 Value Destroyed (1160) 1160 Prototype IDs (2) 40 Alien Tech Used (0) 0 Bonus (6526) 6526 TOTAL SCORE: 11356 Bonus ------- Prayed to X0-1V1 5000 Major X0-1V1 Interference 650 Entered Garrisons 200 Registered with UFD 300 Met Optimus in HQ 500 Friendly Fire -124 Cogmind --------- Core Integrity 0/800 Matter 232/300 Energy 58/100 System Corruption 7% Temperature Cool (45) Movement Core (50) Location -5/Garrison Parts ------- > --- POWER (2) -------- (None) > --- PROPULSION (5) --- (None) > --- UTILITY (6) ------ Coolant Injector Improved System Shield A0-MCA's Component Scanner > --- WEAPON (5) ------- (None) > --- INVENTORY (6) ---- High-capacity Storage Unit Heavy Rocket Launcher Heavy Missile Launcher CPS Tube (2) CPS Tube (1) Companion Sword Peak State ------------ > --- POWER ------------ Light Fission Core Micro Fission Core > --- PROPULSION ------- Carbon-fiber Leg Armored Huge Wheel Armored Huge Wheel > --- UTILITY ---------- Medium Storage Unit Advanced Melee Analysis Suite Improved Thermal Shield Improved Hardlight Generator A0-MCA's Component Scanner X0-1V1's Piety Tracker > --- WEAPON ----------- Autogun KE Penetrator Companion Sword > --- INVENTORY -------- Improved Ion Engine Carbon-fiber Leg Small Storage Unit High-capacity Storage Unit Improved Core Shielding Improved System Shield Heavy Rocket Launcher Heavy Rocket Launcher Heavy Missile Launcher CPS Tube CPS Tube [Rating: 86] Favorites ----------- Power Light Ion Engine Engine Light Ion Engine Power Core Neutrino Core Propulsion Aluminum Leg Treads Light Treads Leg Aluminum Leg Wheel Wheel Utility X0-1V1's Piety Tracker Device X0-1V1's Piety Tracker Storage Small Storage Unit Processor Advanced Melee Analysis Suite Hackware Improved System Shield Protection Improved Core Shielding Weapon Medium Laser Energy Gun Medium Laser Ballistic Gun Light Assault Rifle Launcher Grenade Launcher Special Weapon CPS Tube Slashing Weapon Companion Sword Build | -11 -10 -10 -7 -5 -5 ------- Run | Yrd Mat Sub Scr Fac Gar Slots Evolved 10 | . . . . 10 . Power 1 | . . . . 1 . Propulsion 3 | . . . . 3 . Utility 4 | . . . . 4 . Weapon 2 | . . . . 2 . Parts Attached 47 | . 1 . 2 23 21 Power 8 | . . . . 6 2 Engine 4 | . . . . 3 1 Core 4 | . . . . 3 1 Reactor . | . . . . . . Propulsion 9 | . . . . 5 4 Treads 4 | . . . . 2 2 Leg 2 | . . . . 2 . Wheel 3 | . . . . 1 2 Hover . | . . . . . . Flight . | . . . . . . Utility 20 | . 1 . . 9 10 Device 10 | . 1 . . 5 4 Storage 2 | . . . . 1 1 Processor 3 | . . . . 3 . Hackware 1 | . . . . . 1 Protection 4 | . . . . . 4 Artifact . | . . . . . . Weapon 10 | . . . 2 3 5 Energy Gun 2 | . . . . 1 1 Energy Cannon . | . . . . . . Ballistic Gun 4 | . . . 1 1 2 Ballistic Cannon . | . . . . . . Launcher 2 | . . . 1 . 1 Special Weapon 1 | . . . . . 1 Impact Weapon . | . . . . . . Slashing Weapon 1 | . . . . 1 . Piercing Weapon . | . . . . . . Special Melee Weapon . | . . . . . . Unidentified Prototypes 2 | . 1 . . 1 . Parts Lost 39 | . . . . 14 25 Power 8 | . . . . 4 4 Propulsion 11 | . . . . 5 6 Utility 12 | . . . . 2 10 Weapon 8 | . . . . 3 5 Highest Loss Streak 14 | . . . . 11 14 To Critical Strikes . | . . . . . . Average Backups 7 | . 6 7 7 6 8 Power . | . 1 1 1 . . Propulsion 2 | . 4 4 3 . . Utility . | . . . . 1 2 Weapon 2 | . 1 2 1 2 2 Tool/Special . | . . . . . . Unused Backups 14 | . 6 . 3 3 2 Power 1 | . 1 . . . . Propulsion 6 | . 2 . 2 2 . Utility 1 | . 1 . . . . Weapon 5 | . 2 . 1 1 1 Tool/Special 1 | . . . . . 1 Average Slot Usage (%) 86 | . 85 100 100 84 44 Engine 9 | . 14 14 14 5 . Core 1 | . . . . 4 3 Treads 2 | . . . . 7 2 Leg 19 | . 28 28 28 10 1 Wheel 1 | . . . . 2 2 Device 10 | . . 14 14 10 7 Storage 10 | . 14 14 14 5 4 Processor 4 | . . . . 14 7 Energy Gun 10 | . 14 14 14 7 . Ballistic Gun 7 | . 14 14 8 4 2 Launcher 2 | . . . 5 1 . Slashing Weapon 2 | . . . . 4 5 Peak Build Rating 86 | . 19 19 21 72 86 Average Rating 34 | . 6 19 19 63 49 On Entrance 23 | 6 6 19 19 21 70 Avg Prop Armor Cover (%) 17 | . . . . 18 6 Naked Turns . | . . . . . . Heaviest Build 55 | 11 12 12 14 49 55 Greatest Support 56 | 20 20 20 20 40 56 Greatest Overweight (x) 11 | . . . . 11 4 Average Overweight (x) . | . . . . 2 1 Largest Inventory Capacity 21 | . 8 8 8 11 21 Average Capacity 8 | . 8 8 8 9 10 Most Carried 11 | . 7 7 8 9 11 Average Carried 7 | . 6 7 7 6 8 Final Capacity 11 | 8 8 8 8 11 6 Final Carried 7 | 6 7 7 7 7 6 Class Distribution -------------------- 73% | Mutant 14% | Scavenger-Gunner 11% | Scavenger-Mutant Dominant Class ---------------- Mutant | -10/Materials Mutant | -10/Subcaves Mutant | -7/Scraptown Scavenger-Gunner | -5/Factory Mutant | -5/Garrison Resources | -11 -10 -10 -7 -5 -5 ----------- Run | Yrd Mat Sub Scr Fac Gar Matter Collected 783 | 200 6 12 . 378 187 Remotely . | . . . . . . Salvage Created 1476 | . 35 10 . 989 442 Parts 78 | . 3 1 . 45 29 Haulers Intercepted 1 | . . . . 1 . Recyclers Shooed 1 | . . . . 1 . Parts Field Recycled . | . . . . . . Retrieved Matter . | . . . . . . Parts Self-Destructed 12 | . . 12 . . . Prevented . | . . . . . . Parts Restored . | . . . . . . Kills | -11 -10 -10 -7 -5 -5 ------- Run | Yrd Mat Sub Scr Fac Gar Combat Hostiles Destroyed 21 | . . 1 . 14 6 Melee 8 | . . . . 4 4 Guns 9 | . . 1 . 8 . AOE 2 | . . . . 1 1 Classes Destroyed 11 | . 1 1 . 7 2 Worker 1 | . . . . 1 . Builder 1 | . . . . 1 . Tunneler 1 | . . . . 1 . Hauler 1 | . . . . 1 . Swarmer 2 | . . 1 . . 1 Grunt 6 | . . . . 6 . Sentry 5 | . . . . 3 2 Hunter 1 | . . . . . 1 Programmer 4 | . . . . 3 1 Behemoth 1 | . . . . . 1 Federalist 1 | . 1 . . . . Wasp 2 | . . . . 2 . Best Kill Streak 4 | . . 1 . 4 3 Combat Bots Only 4 | . . 1 . 4 3 Max Kills in Single Turn 2 | . 1 1 . 2 1 Gunslinging . | . . . . . . Exploded 1 | . . . . 1 1 Melee 1 | . . . . 1 1 Uniques/NPCs Destroyed . | . . . . . . Combat | -11 -10 -10 -7 -5 -5 -------- Run | Yrd Mat Sub Scr Fac Gar Hostile Shots Fired 341 | . . . . 101 240 Missed 76 | . . . . 29 47 Hits 265 | . . . . 72 193 Projectile 265 | . . . . 72 193 Critical Strikes 13 | . . . . 3 10 Damage Taken 5266 | . 21 . . 1504 3741 Core 1218 | . . . . 205 1013 Absorbed by Shields 396 | . . . . . 396 Redirected to Shielding 62 | . . . . . 62 Ignored by Resistances 280 | . . . . 52 228 Regen/Repaired (Parts) 88 | . . . . 88 . Core Remaining (%) 100 | 100 . . 100 . . Volleys Fired 39 | . 6 2 . 26 5 Largest 3 | . 2 2 . 3 2 Hottest 164 | . 70 70 . 164 114 Shots Fired 92 | . 12 5 . 69 6 Gun 87 | . 12 5 . 67 3 Cannon . | . . . . . . Launcher 4 | . . . . 2 2 Special 1 | . . . . . 1 Kinetic 36 | . 6 2 . 26 2 Thermal 51 | . 6 3 . 41 1 Explosive 4 | . . . . 2 2 Electromagnetic . | . . . . . . Robot Hit Streak 12 | . 5 2 . 10 12 Robot Miss Streak 4 | . 2 4 . 4 1 Penetration Max 1 | . . . . 1 . Secondary Targets 1 | . . . . 1 . Max Gunslinging Chain 1 | . . . . 1 . Shots Hit Robots 131 | . 7 2 . 73 49 Core Hits 55 | . 2 2 . 32 19 Critical Kills . | . . . . . . Critical Parts Destroyed 3 | . . . . 3 . Critical Strikes 9 | . 1 1 . 5 2 Burn 4 | . 1 1 . 2 . Destroy 3 | . . . . 3 . Melee Attacks 88 | . . . . 31 57 Impact . | . . . . . . Slashing 88 | . . . . 31 57 Piercing . | . . . . . . Sneak Attacks 1 | . . . . 1 . Combat Hostiles . | . . . . . . Follow-up Attacks 4 | . . . . . 4 Damage Inflicted 4712 | . 93 24 . 2331 2264 Guns 1072 | . 91 24 . 922 35 Cannons . | . . . . . . Explosions 359 | . . . . 47 312 Melee 3279 | . . . . 1362 1917 Ramming 2 | . 2 . . . . Kinetic 550 | . 41 . . 474 35 Thermal 522 | . 50 24 . 448 . Explosive 359 | . . . . 47 312 Electromagnetic . | . . . . . . Impact . | . . . . . . Slashing 3279 | . . . . 1362 1917 Piercing . | . . . . . . Highest Corruption 7 | . . . . 5 7 Average Corruption 4 | . . . . 3 5 Corruption Purged 2 | . . . . 2 . Corruption Blocked . | . . . . . . Effects 16 | . . . . 6 10 Message Errors 3 | . . . . 2 1 Matter Fused 1 | . . . . 1 . Heat Flow Errors 2 | . . . . . 2 Energy Discharges 2 | . . . . 1 1 Parts Rejected 1 | . . . . . 1 Parts Fused 1 | . . . . 1 . Data Loss (minor) 4 | . . . . . 4 Misfires 1 | . . . . 1 . Alerts 1 | . . . . . 1 Overload Shots . | . . . . . . Overflow Damage 90 | . . . . 51 39 Projectiles . | . . . . . . Explosions 25 | . . . . . 25 Melee 65 | . . . . 51 14 Knockbacks . | . . . . . . Impact . | . . . . . . Kinetic . | . . . . . . Secondary . | . . . . . . Self-Inflicted Damage 73 | . . . . 20 53 Shots 3 | . . . . 1 2 Rammed . | . . . . . . Targets Rammed 1 | . 1 . . . . Kicked 1 | . 1 . . . . Crushed . | . . . . . . Highest Temperature 333 | . 66 . . 333 233 Average Temperature 82 | . 29 . . 100 80 Received Heat Transfer 618 | . 12 . . 189 417 Effects 3 | . . . . 3 . Interference 2 | . . . . 2 . Short Circuit 1 | . . . . 1 . Siege Activations . | . . . . . . Martial Activations . | . . . . . . Shielding Activations . | . . . . . . Robots Disrupted . | . . . . . . Combat Hostiles . | . . . . . . Robots Corrupted . | . . . . . . Combat Hostiles . | . . . . . . Parts Fried . | . . . . . . Impact Corruptions . | . . . . . . Robots Melted 1 | . . . . 1 . Combat Hostiles 1 | . . . . 1 . Parts Melted 5 | . . . . 5 . Heat Transferred 1517 | . 222 148 . 1147 . Parts Sabotaged . | . . . . . . Parts Stolen . | . . . . . . Parts Stripped . | . . . . . . Power Chain Reactions . | . . . . . . Alert | -11 -10 -10 -7 -5 -5 ------- Run | Yrd Mat Sub Scr Fac Gar Maximum Alert Level . | . . . . . . Low Security (%) 100 | . 100 . . 100 100 Level 1 . | . . . . . . Level 2 . | . . . . . . Level 3 . | . . . . . . Level 4 . | . . . . . . Level 5 . | . . . . . . High Security . | . . . . . . Max Security . | . . . . . . Peak Influence 111 | . 15 . . 97 111 Initial 31 | . . . . . 31 Average 24 | . . . . 29 32 Influence Increases 614 | . 15 20 . 387 192 Destroy 0b10 Robot/C 420 | . . 20 . 280 120 Destroy 0b10 Robot/NC 25 | . . . . 20 5 Destroy Leader 72 | . . . . 62 10 Successful Hack 5 | . . . . 5 . Destroy Structure 32 | . . . . 20 12 Lose Combat Pursuer 60 | . 15 . . . 45 Influence Decreases 602 | . 15 20 . 342 225 Entered New Map 14 | . . . . . 14 Time Decay 237 | . 15 20 . 202 . Lost Part 351 | . . . . 140 211 Squads Dispatched 8 | . 3 . . 5 . Investigation 1 | . . . . 1 . Extermination 2 | . . . . 2 . Reinforcement 3 | . 3 . . . . Assault . | . . . . . . Garrison 2 | . . . . 2 . Intercept . | . . . . . . Searches Triggered . | . . . . . . Construction Impeded . | . . . . . . Haulers Reinforced . | . . . . . . Active Scanning Responses . | . . . . . . Cargo Convoy Interrupts . | . . . . . . Stealth | -11 -10 -10 -7 -5 -5 --------- Run | Yrd Mat Sub Scr Fac Gar Distress Signals 1 | . 1 . . . . Communications Jammed . | . . . . . . Distress Signals . | . . . . . . Times Spotted 46 | . 10 2 . 15 19 Peak Tracking Total 7 | . 2 1 . 3 7 Tactical Retreats 3 | . 1 . . . 2 Traps | -11 -10 -10 -7 -5 -5 ------- Run | Yrd Mat Sub Scr Fac Gar Traps Triggered 1 | . . . . . 1 Indirectly . | . . . . . . Trap Hack Attempts . | . . . . . . Triggered . | . . . . . . Disarmed . | . . . . . . Reprogrammed . | . . . . . . Reused . | . . . . . . Traps Extracted . | . . . . . . Installed . | . . . . . . Triggered . | . . . . . . Machines | -11 -10 -10 -7 -5 -5 ---------- Run | Yrd Mat Sub Scr Fac Gar Machines Disabled . | . . . . . . Max in Single Turn . | . . . . . . Garrison Relay 1 | . . . . . 1 Machines Repaired . | . . . . . . Machines Dismantled . | . . . . . . Machines Sabotaged . | . . . . . . Overloaded Fab Kills . | . . . . . . Hacking | -11 -10 -10 -7 -5 -5 --------- Run | Yrd Mat Sub Scr Fac Gar Machines Accessed 5 | . . . 2 3 . Terminals 1 | . . . . 1 . Fabricators . | . . . . . . Repair Stations 1 | . . . . 1 . Recycling Units . | . . . . . . Scanalyzers . | . . . . . . Garrison Access 1 | . . . . 1 . Total Hacks 13 | . . . 9 4 . Successful 12 | . . . 9 3 . Failed 1 | . . . . 1 . Catastrophic . | . . . . . . Database Lockouts . | . . . . . . Manual 3 | . 1 . . 2 . Terminals 1 | . . . . 1 . Fabricators . | . . . . . . Repair Stations 2 | . . . . 2 . Recycling Units . | . . . . . . Scanalyzers . | . . . . . . Garrison Access 1 | . . . . 1 . Terminal Hacks 10 | . . . 9 1 . Record 1 | . . . 1 . . Robot Analysis 7 | . . . 7 . . Open Door 1 | . . . 1 . . Open DSF 1 | . . . . 1 . Fabricator Hacks . | . . . . . . Repair Station Hacks . | . . . . . . Recycling Unit Hacks . | . . . . . . Scanalyzer . | . . . . . . Garrison Access Hacks 1 | . . . . 1 . Unlock Access 1 | . . . . 1 . Unauthorized Hacks 1 | . . . . 1 . Terminals . | . . . . . . Fabricators . | . . . . . . Repair Stations 1 | . . . . 1 . Patch 1 | . . . . 1 . Recycling Units . | . . . . . . Scanalyzers . | . . . . . . Garrison Access . | . . . . . . Data Cores Recovered . | . . . . . . Used . | . . . . . . Hacking Detections 2 | . . . . 2 . Full Trace Events . | . . . . . . Feedback Events . | . . . . . . Feedback Blocked . | . . . . . . Robot Schematics Acquired . | . . . . . . Robots Built . | . . . . . . Authchips . | . . . . . . Time . | . . . . . . Total Robot Build Rating . | . . . . . . Part Schematics Acquired . | . . . . . . Parts Built . | . . . . . . Authchips . | . . . . . . Time . | . . . . . . Total Part Build Rating . | . . . . . . Part Studies Acquired . | . . . . . . Parts Repaired . | . . . . . . Time . | . . . . . . Parts Recycled . | . . . . . . Recycled Matter . | . . . . . . Retrieved Matter . | . . . . . . Retrieved Components . | . . . . . . Parts Scanalyzed . | . . . . . . Part Schematics Acquired . | . . . . . . Parts Damaged . | . . . . . . Bothacking | -11 -10 -10 -7 -5 -5 ------------ Run | Yrd Mat Sub Scr Fac Gar Used RIF Installer . | . . . . . . Robots Hacked . | . . . . . . Non-combat . | . . . . . . Combat . | . . . . . . Robot Hacks Applied . | . . . . . . Relay Couplers Released 5 | . . . . . 5 Machine Destruction 5 | . . . . . 5 Fabnet Peak Effective % . | . . . . . . Robots Rewired . | . . . . . . Allies Hacked . | . . . . . . Hacks Repelled . | . . . . . . Allies | -11 -10 -10 -7 -5 -5 -------- Run | Yrd Mat Sub Scr Fac Gar Total Allies . | . . . . . . Largest Group . | . . . . . . Highest-Rated Group . | . . . . . . Highest-Rated Ally . | . . . . . . Initial UFD Resources 38 | . . . . 38 38 Total Orders . | . . . . . . Ally Attacks . | . . . . . . Total Damage . | . . . . . . Kills . | . . . . . . Allies Corrupted . | . . . . . . Allies Melted . | . . . . . . X0-1V1 Amusement Gains 101 | . 4 . . 15 82 Good Acts 8 | . 1 1 . 2 4 Bad Acts 5 | . . 1 . 3 1 Intel | -11 -10 -10 -7 -5 -5 ------- Run | Yrd Mat Sub Scr Fac Gar Active Infowar (turns) . | . . . . . . Robot Analysis Total 7 | . . . 7 . . Derelict Logs Recovered . | . . . . . . Drone Launches . | . . . . . . Drone Recoveries . | . . . . . . Exploration | -11 -10 -10 -7 -5 -5 ------------- Run | Yrd Mat Sub Scr Fac Gar Turns Passed 2586 | . 259 124 1113 692 398 Spaces Moved 1640 | 1 183 89 917 322 128 Core 33 | . . . . 1 32 Treads 93 | . . . . 46 47 Legs 1276 | 1 183 89 917 77 9 Wheels 238 | . . . . 198 40 Hover . | . . . . . . Flight . | . . . . . . Fastest Speed 50 | 120 120 120 120 120 50 Average Speed 129 | 120 120 120 120 150 163 Slowest Speed 600 | 120 120 120 120 600 250 Overloaded Moves . | . . . . . . Propulsion Burnouts . | . . . . . . Robots Hopped . | . . . . . . Potential Cave-ins . | . . . . . . Cave-ins Triggered . | . . . . . . Exploration Rate (%) 22 | 2 44 12 51 6 22 Regions Visited 5 Branch Regions 2 Pre-discovered Areas . | . . . . . . Known Exits Taken 1 | . . . . 1 . Unknown Exits Taken 4 | 1 1 1 1 . . Scrap Searched . | . . . . . . Spaces Dug . | . . . . . . Terrain Destroyed 13 | . . . . 7 6 Melee . | . . . . . . Projectile 1 | . . . . 1 . AOE 12 | . . . . 6 6 Terrain Rammed . | . . . . . . Walls Destroyed . | . . . . . . Machines Disabled . | . . . . . . Actions | -11 -10 -10 -7 -5 -5 --------- Run | Yrd Mat Sub Scr Fac Gar Total 1899 | . 211 102 930 425 231 Wait 48 | . 20 12 3 8 5 Move 1636 | . 182 88 916 322 128 Hop . | . . . . . . Pick Up 17 | . 1 . 4 7 5 Fast Attach 30 | . 1 . . 12 17 Attach 18 | . . . . 11 7 Detach 8 | . . . . 4 4 Swap 8 | . . . 3 4 1 Drop 10 | . . . 4 . 6 Fire 39 | . 6 2 . 26 5 Melee 84 | . . . . 31 53 Ram . | . . . . . . Kick 1 | . 1 . . . . Crush . | . . . . . . Escape Stasis . | . . . . . . Rewire . | . . . . . . Trap . | . . . . . . Miscellaneous . | . . . . . . Route ------- -11/Scrapyard -10/Materials (discovered 2 exits: [*Mat] / [*Sub]) -10/Subcaves -7/Scraptown -5/Factory (discovered 2 exits: [*Upp] / Gar) -5/Garrison History --------- Turn | Location | Event 1 | -11/Scrapyard | Discovered new exit (range 0) 1 | -11/Scrapyard | Entered Materials 2 | -10/Materials | Met a group of wandering Federalists 131 | -10/Materials | Discovered new exit (range 14) 256 | -10/Materials | Discovered new exit (range 3) 259 | -10/Materials | Prayed at D.C.S.S. Altar Unit 260 | -10/Materials | EX resistance permanently improved by X0-1V1 (+10%) 260 | -10/Materials | Entered Subcaves 261 | -10/Subcaves | Continued accompanying wandering Federalists (4) 261 | -10/Subcaves | Approached by a straggling Scientist 282 | -10/Subcaves | Shifting Twisted Machinery released Mak. Shrapnel Gun 318 | -10/Subcaves | Build established: Mutant 342 | -10/Subcaves | X0-1V1 activates XOMVISION 384 | -10/Subcaves | Entered Scraptown 473 | -7/Scraptown | Visited UFD Registry 473 | -7/Scraptown | Registered with UFD as "Cogmachine" 500 | -7/Scraptown | Visited SPCMW 520 | -7/Scraptown | Visited Comm Corps 689 | -7/Scraptown | Visited The Evicted 711 | -7/Scraptown | Visited IN-MT5's Study 901 | -7/Scraptown | Visited Analyses Database 952 | -7/Scraptown | Visited Junk Repository 1030 | -7/Scraptown | Visited A0-MCA Data Center 1042 | -7/Scraptown | Given a B+ rating by A0-MCA 1044 | -7/Scraptown | Found A0-MCA's Component Scanner 1096 | -7/Scraptown | Visited Supply Room 1141 | -7/Scraptown | Discovered new exit (range 5) 1278 | -7/Scraptown | Visited Sword Containment 1291 | -7/Scraptown | Found Prototype Slashing Weapon 1351 | -7/Scraptown | Visited Research Penetration Think Tank 1393 | -7/Scraptown | Visited Scrapoid Research Area 1430 | -7/Scraptown | Met Optimus 1430 | -7/Scraptown | Accepted into 0bPrime 1497 | -7/Scraptown | Entered Factory 1497 | -5/Factory | Evolved 10 slots: Power x1, Propulsion x3, Utility x4, Weapon x2 1500 | -5/Factory | Identified Companion Sword 1501 | -5/Factory | Identified exit to DSF 1593 | -5/Factory | Inventory capacity permanently improved by X0-1V1 (+1) 1746 | -5/Factory | Discovered new exit (range 10) 1929 | -5/Factory | Build established: Scavenger-Gunner 1993 | -5/Factory | X0-1V1 sent hostile Wasp (x2) 2027 | -5/Factory | Garrison activated, responded to threat 2062 | -5/Factory | Lost 11 parts (2p5n1u3w) 2187 | -5/Factory | Lost 3 parts (2p1u) 2189 | -5/Factory | Identified exit to Garrison 2189 | -5/Factory | Entered Garrison 2192 | -5/Garrison | Attached CPS modules to C-45 Heavy ARC 2250 | -5/Garrison | Spotted B-75 Beast 2281 | -5/Garrison | Triggered checkpoint 2307 | -5/Garrison | Weapon slot count temporarily expanded by X0-1V1 (+1) 2336 | -5/Garrison | Core integrity fell below 50% 2350 | -5/Garrison | Destroyed B-75 Beast 2379 | -5/Garrison | Lost 14 parts (3p4n5u2w) 2497 | -5/Garrison | Triggered checkpoint 2497 | -5/Garrison | Core integrity fell below 20% 2502 | -5/Garrison | Triggered checkpoint 2512 | -5/Garrison | X0-1V1 rescued you from certain death 2541 | -5/Garrison | Lost 10 parts (1p2n4u3w) 2587 | -5/Garrison | Destroyed by Y-64 Sentinel with Wave Gun Last Messages --------------- 02512_ X0-1V1 moves the world to save you. 02512_ Core integrity partially restored (384). The surroundings shift and blur. X0-1V1's Piety Tracker suddenly appears amidst shimmering waves of color. 02540_ System corrupted: Heat flow error (+273). Companion Sword: "What's a few lost parts?" 02555_ System corrupted: Companion Sword rejected. Companion Sword: "Give me another chance!" 02555_ Acquired Companion Sword. 02561_ Acquired X0-1V1's Piety Tracker. 02575_ System corrupted: Component data lost. 02578_ Penetrated by Slug. 02584_ Critical hit (Burn: +37). 02584_ X0-1V1's Piety Tracker destroyed. 02584_ Dropped Med. Storage Unit. 02584_ Penetrated by Slug. Companion Sword: "This is my sad face." 02587_ Penetrated by Slug. 02587_ Critical hit (Burn: +37). 02587_ X0-1V1 chuckles heartily! Map ----- +----------------------------------------------------+ | ????????????????????????????????? | | ????????????????????????????????? | | ????????????????????????????????? | | ????????????????????????????????? | | ????????????????????????????????? | | ????????????????????????????????? | | ????????????????????????????????? | | ????????????????????????????????? | | ????????????????????????????????? | | ????????????????????????????????? | | ????????????????????????????????? | | ????????????????????????????????? | | ????????????????????????????????? | | ????????????????????????????????? | | ????????????????????????????????? | | ????????????????????????????????? | | ????????????????????????????????? | | ????????????????????????????????? | | #######################?????????? | | # #?????????? | | # #?????????? | | #################### #?????????? | | ???????????????????# #???##????? | | ???????????????????# ####T#????? | | ???????????????????# #s Y "????? | | ???????????????????# ss @ "????? | | ???????????????????# #s #????? | | ???????????????????# #Y #????? | | ???????????????????# # Y #????? | | ???????????????????# ## ##????? | | ???????????????????# #####?????? | | ???????????????????# #?????????? | | ???????????????????# #?????????? | | ???????????????????# ??????????? | | ???????????????????# ??????????? | | ???????????????????# ??????????? | | ???????????????????# ??????????? | | ???????????????????? ??????????? | | ???????????????????? ??????????? | | ????????????????????++??????????? | | ????????????????????????????????? | | ????????????????????????????????? | | ????????????????????????????????? | | ????????????????????????????????? | | ????????????????????????????????? | | ????????????????????????????????? | | ????????????????????????????????? | | ????????????????????????????????? | | ????????????????????????????????? | | ????????????????????????????????? | +----------------------------------------------------+ Best States ------------- Heat Dissipation 59 Energy Generation 32 Energy Capacity 465 Matter Stores 300 Matter Capacity 300 Sight Range 16 Terrain Scan Density 10 Armor Coverage 450 Resistance: TH 25 Resistance: EX 10 Core Shielding 30 Evasion (%) 55 Melee Accuracy 16 Recoil Reduction 2 Item Schematics ----------------- None Robot Schematics ------------------ None Fabricated ------------ Nothing Repaired ---------- Nothing Studied --------- None Alien Tech Used ----------------- None Achievements -------------- None Challenges ------------ None Game ------ Seed PersonalControlFalx Manual? 0 Play Time 00:18:23 Cumulative 1325.4 hours Start 2026.06.23 @ 14:31:57 End 2026.06.23 @ 14:58:09 Sessions 1 Manual Loads 0 Difficulty Rogue Special Mode None Game No. 1622 Rogue 1338 Adventurer 124 Explorer 160 Win Type - Total 65 Types 51/0/8/4/1/0/0/1/0/0 Lore% 92 Gallery% 83 Achievement% 71 Wizard Run 0 Options --------- Layout 0 ASCII 0 Keyboard 1 Movement Numpad Keybinds 0 Fullscreen 2 Font 18/X11 Map View 76x50 Zoom Use 0% Tactical HUD 1 Map Filters NONE Filters NONE Steam 1 RUN: 49a65616-8d08-4c28-80f2-c1db19511f4d